[Event "Titled Tuesday Blitz February 14 Late 2023"]
[White "Buchenau, Frank"]
[Black "Hartikainen, Jarmo"]
[WhiteFideId "4604350"]
[BlackFideId "503134"]
[WhiteElo "2222"]
[BlackElo "2108"]
[Result "1/2-1/2"]
[Round "08"]
[TimeControl "180+2"]
[Date "2023.02.14"]
[WhiteClock "0:00:42"]
[BlackClock "0:00:17"]

1. e4 {[%clk 0:02:56]}  c5 {[%clk 0:02:59]} 2. Nf3 {[%clk 0:02:56]}  Nc6 {[%clk 0:02:59]} 3. Bb5 {[%clk 0:02:56]}  g6 {[%clk 0:02:59]} 4. Bxc6 {[%clk 0:02:55]}  dxc6 {[%clk 0:02:59]} 5. d3 {[%clk 0:02:54]}  Bg4 {[%clk 0:02:59]} 6. h3 {[%clk 0:02:51]}  Bxf3 {[%clk 0:02:59]} 7. Qxf3 {[%clk 0:02:52]}  Bg7 {[%clk 0:03:00]} 8. O-O {[%clk 0:02:51]}  e5 {[%clk 0:02:59]} 9. Be3 {[%clk 0:02:49]}  b6 {[%clk 0:02:58]} 10. a4 {[%clk 0:02:49]}  h6 {[%clk 0:02:53]} 11. a5 {[%clk 0:02:49]}  Nf6 {[%clk 0:02:48]} 12. Nd2 {[%clk 0:02:47]}  O-O {[%clk 0:02:40]} 13. axb6 {[%clk 0:02:46]}  axb6 {[%clk 0:02:39]} 14. Nc4 {[%clk 0:02:42]}  Nd7 {[%clk 0:02:38]} 15. Qg4 {[%clk 0:02:34]}  Rxa1 {[%clk 0:02:19]} 16. Rxa1 {[%clk 0:02:35]}  Qc7 {[%clk 0:02:09]} 17. f4 {[%clk 0:02:33]}  b5 {[%clk 0:01:54]} 18. Nxe5 {[%clk 0:02:29]}  Nxe5 {[%clk 0:01:52]} 19. fxe5 {[%clk 0:02:29]}  Qxe5 {[%clk 0:01:51]} 20. c3 {[%clk 0:02:24]}  h5 {[%clk 0:01:36]} 21. Qf3 {[%clk 0:02:06]}  b4 {[%clk 0:01:19]} 22. d4 {[%clk 0:02:01]}  cxd4 {[%clk 0:01:16]} 23. cxd4 {[%clk 0:01:55]}  Qd6 {[%clk 0:01:03]} 24. e5 {[%clk 0:01:53]}  Qd5 {[%clk 0:01:01]} 25. Qxd5 {[%clk 0:01:51]}  cxd5 {[%clk 0:01:02]} 26. Bd2 {[%clk 0:01:31]}  Rc8 {[%clk 0:00:42]} 27. Bxb4 {[%clk 0:01:29]}  Bf8 {[%clk 0:00:34]} 28. Bxf8 {[%clk 0:01:25]}  Kxf8 {[%clk 0:00:35]} 29. Ra5 {[%clk 0:01:24]}  Rc1+ {[%clk 0:00:32]} 30. Kh2 {[%clk 0:01:23]}  Rc2 {[%clk 0:00:22]} 31. Rxd5 {[%clk 0:01:22]}  Rxb2 {[%clk 0:00:22]} 32. Kg3 {[%clk 0:01:19]}  Ke7 {[%clk 0:00:20]} 33. Ra5 {[%clk 0:01:18]}  Ke6 {[%clk 0:00:19]} 34. Ra6+ {[%clk 0:01:17]}  Kd5 {[%clk 0:00:19]} 35. Rd6+ {[%clk 0:01:16]}  Ke4 {[%clk 0:00:18]} 36. Rd7 {[%clk 0:01:14]}  Rb3+ {[%clk 0:00:17]} 37. Kh2 {[%clk 0:01:13]}  Rd3 {[%clk 0:00:17]} 38. Rxf7 {[%clk 0:01:08]}  Rxd4 {[%clk 0:00:17]} 39. Rg7 {[%clk 0:01:07]}  Kf5 {[%clk 0:00:17]} 40. e6 {[%clk 0:01:07]}  Re4 {[%clk 0:00:17]} 41. e7 {[%clk 0:01:07]}  Kf6 {[%clk 0:00:17]} 42. Rh7 {[%clk 0:00:58]}  Rxe7 {[%clk 0:00:17]} 43. Rxe7 {[%clk 0:00:56]}  Kxe7 {[%clk 0:00:17]} 44. Kg3 {[%clk 0:00:55]}  g5 {[%clk 0:00:16]} 45. h4 {[%clk 0:00:51]}  Kf6 {[%clk 0:00:15]} 46. Kf3 {[%clk 0:00:46]}  gxh4 {[%clk 0:00:14]} 47. Kf4 {[%clk 0:00:46]}  Kg6 {[%clk 0:00:14]} 48. Ke4 {[%clk 0:00:42]}  Kg5 {[%clk 0:00:14]} 49. Kf3 {[%clk 0:00:42]}  Kf5 {[%clk 0:00:15]} 50. Kf2 {[%clk 0:00:41]}  Kg4 {[%clk 0:00:15]} 51. Kg1 {[%clk 0:00:39]}  Kg3 {[%clk 0:00:15]} 52. Kh1 {[%clk 0:00:39]}  h3 {[%clk 0:00:15]} 53. gxh3 {[%clk 0:00:38]}  Kxh3 {[%clk 0:00:15]} 54. Kg1 {[%clk 0:00:39]}  Kg3 {[%clk 0:00:15]} 55. Kh1 {[%clk 0:00:40]}  h4 {[%clk 0:00:16]} 56. Kg1 {[%clk 0:00:41]}  h3 {[%clk 0:00:16]} 57. Kh1 {[%clk 0:00:42]}  h2 {[%clk 0:00:17]} 1/2-1/2


[Site "https://www.chess.com"]

[Event "Titled Tuesday Blitz February 14 Late 2023"]
[White "Rodrigues, Tiago Pereira"]
[Black "Slade, Theodore"]
[WhiteFideId "2101203"]
[BlackFideId "426547"]
[WhiteElo "2155"]
[BlackElo "1995"]
[Result "1-0"]
[Round "08"]
[TimeControl "180+2"]
[Date "2023.02.14"]
[WhiteClock "0:01:19"]
[BlackClock "0:00:30"]

1. d4 {[%clk 0:03:00]}  d5 {[%clk 0:03:00]} 2. Bf4 {[%clk 0:03:00]}  Nf6 {[%clk 0:02:59]} 3. e3 {[%clk 0:03:01]}  c5 {[%clk 0:03:00]} 4. c3 {[%clk 0:03:01]}  Nc6 {[%clk 0:02:59]} 5. Nf3 {[%clk 0:03:00]}  Qb6 {[%clk 0:02:58]} 6. Qc1 {[%clk 0:03:00]}  Bf5 {[%clk 0:02:57]} 7. Nbd2 {[%clk 0:03:00]}  e6 {[%clk 0:02:50]} 8. h3 {[%clk 0:03:00]}  h6 {[%clk 0:02:41]} 9. Be2 {[%clk 0:03:00]}  Be7 {[%clk 0:02:39]} 10. O-O {[%clk 0:03:00]}  O-O {[%clk 0:02:40]} 11. a3 {[%clk 0:02:54]}  Rac8 {[%clk 0:02:39]} 12. dxc5 {[%clk 0:02:54]}  Bxc5 {[%clk 0:02:39]} 13. b4 {[%clk 0:02:55]}  Be7 {[%clk 0:02:38]} 14. c4 {[%clk 0:02:55]}  Rfd8 {[%clk 0:02:28]} 15. Ra2 {[%clk 0:02:48]}  a5 {[%clk 0:02:26]} 16. c5 {[%clk 0:02:45]}  Qa7 {[%clk 0:02:23]} 17. Qb2 {[%clk 0:02:40]}  Nd7 {[%clk 0:01:45]} 18. Nb3 {[%clk 0:02:13]}  Bf6 {[%clk 0:01:45]} 19. Qd2 {[%clk 0:02:11]}  a4 {[%clk 0:01:29]} 20. Nbd4 {[%clk 0:02:10]}  Nxd4 {[%clk 0:01:30]} 21. Nxd4 {[%clk 0:02:08]}  Bh7 {[%clk 0:01:27]} 22. Nb5 {[%clk 0:02:07]}  Qa8 {[%clk 0:01:25]} 23. Nc7 {[%clk 0:02:05]}  Qa7 {[%clk 0:01:20]} 24. Nb5 {[%clk 0:02:04]}  Qa8 {[%clk 0:01:20]} 25. Nd6 {[%clk 0:02:02]}  Rc6 {[%clk 0:01:19]} 26. Bb5 {[%clk 0:02:01]}  e5 {[%clk 0:01:04]} 27. Bxc6 {[%clk 0:02:01]}  bxc6 {[%clk 0:01:04]} 28. Bg3 {[%clk 0:01:59]}  Be7 {[%clk 0:00:55]} 29. Raa1 {[%clk 0:01:51]}  Bxd6 {[%clk 0:00:55]} 30. cxd6 {[%clk 0:01:52]}  Qb8 {[%clk 0:00:54]} 31. f4 {[%clk 0:01:46]}  e4 {[%clk 0:00:50]} 32. f5 {[%clk 0:01:45]}  Nb6 {[%clk 0:00:47]} 33. f6 {[%clk 0:01:30]}  Nc4 {[%clk 0:00:46]} 34. Qc3 {[%clk 0:01:24]}  g5 {[%clk 0:00:36]} 35. h4 {[%clk 0:01:23]}  Qb6 {[%clk 0:00:34]} 36. Rae1 {[%clk 0:01:21]}  Nxd6 {[%clk 0:00:30]} 37. hxg5 {[%clk 0:01:21]}  hxg5 {[%clk 0:00:30]} 38. Bxd6 {[%clk 0:01:19]}  Rxd6 {[%clk 0:00:30]} 39. Qe5 {[%clk 0:01:19]} 1-0


[Site "https://www.chess.com"]

[Event "Titled Tuesday Blitz February 14 Late 2023"]
[White "Kostiukov, Alexandr"]
[Black "Davidson, Kevin"]
[WhiteFideId "14108100"]
[BlackFideId "2056810"]
[WhiteElo "2271"]
[BlackElo "2154"]
[Result "1-0"]
[Round "08"]
[TimeControl "180+2"]
[Date "2023.02.14"]
[WhiteClock "0:01:03"]
[BlackClock "0:00:27"]

1. g3 {[%clk 0:02:56]}  Nf6 {[%clk 0:02:59]} 2. Bg2 {[%clk 0:02:56]}  g6 {[%clk 0:03:00]} 3. c4 {[%clk 0:02:55]}  Bg7 {[%clk 0:03:00]} 4. Nf3 {[%clk 0:02:56]}  O-O {[%clk 0:03:00]} 5. O-O {[%clk 0:02:56]}  d6 {[%clk 0:03:00]} 6. d4 {[%clk 0:02:56]}  Nbd7 {[%clk 0:03:00]} 7. Nc3 {[%clk 0:02:57]}  e5 {[%clk 0:03:01]} 8. h3 {[%clk 0:02:57]}  c6 {[%clk 0:03:01]} 9. e4 {[%clk 0:02:57]}  Qb6 {[%clk 0:03:01]} 10. c5 {[%clk 0:02:52]}  dxc5 {[%clk 0:03:02]} 11. dxe5 {[%clk 0:02:52]}  Ne8 {[%clk 0:03:02]} 12. e6 {[%clk 0:02:51]}  fxe6 {[%clk 0:03:03]} 13. Ng5 {[%clk 0:02:51]}  Ne5 {[%clk 0:03:03]} 14. f4 {[%clk 0:02:44]}  Nf7 {[%clk 0:03:03]} 15. Nxf7 {[%clk 0:02:41]}  Bd4+ {[%clk 0:03:02]} 16. Kh2 {[%clk 0:02:38]}  Rxf7 {[%clk 0:03:03]} 17. Ne2 {[%clk 0:02:36]}  e5 {[%clk 0:02:57]} 18. Nxd4 {[%clk 0:02:33]}  cxd4 {[%clk 0:02:50]} 19. fxe5 {[%clk 0:02:31]}  Rxf1 {[%clk 0:02:42]} 20. Qxf1 {[%clk 0:02:23]}  Be6 {[%clk 0:02:40]} 21. b3 {[%clk 0:02:20]}  Qc7 {[%clk 0:02:04]} 22. Bh6 {[%clk 0:02:18]}  Ng7 {[%clk 0:01:45]} 23. Qf6 {[%clk 0:02:16]}  Rf8 {[%clk 0:01:41]} 24. Qg5 {[%clk 0:01:39]}  Qd8 {[%clk 0:01:21]} 25. Qd2 {[%clk 0:01:27]}  c5 {[%clk 0:00:51]} 26. Rc1 {[%clk 0:01:25]}  b6 {[%clk 0:00:48]} 27. Bg5 {[%clk 0:01:12]}  Qc7 {[%clk 0:00:40]} 28. Qxd4 {[%clk 0:01:04]}  cxd4 {[%clk 0:00:30]} 29. Rxc7 {[%clk 0:01:04]}  Rd8 {[%clk 0:00:27]} 30. Bxd8 {[%clk 0:01:03]} 1-0


[Site "https://www.chess.com"]

[Event "Titled Tuesday Blitz February 14 Late 2023"]
[White "Forgacs, Attila Jr."]
[Black "Stachanczyk, Jacek"]
[WhiteFideId "773654"]
[BlackFideId "1116657"]
[WhiteElo "2264"]
[BlackElo "2147"]
[Result "1-0"]
[Round "08"]
[TimeControl "180+2"]
[Date "2023.02.14"]
[WhiteClock "0:00:24"]
[BlackClock "0:00:05"]

1. e4 {[%clk 0:03:00]}  c5 {[%clk 0:02:59]} 2. Nf3 {[%clk 0:03:00]}  d6 {[%clk 0:02:59]} 3. d4 {[%clk 0:03:01]}  cxd4 {[%clk 0:03:00]} 4. Nxd4 {[%clk 0:03:02]}  Nf6 {[%clk 0:02:57]} 5. Nc3 {[%clk 0:03:03]}  g6 {[%clk 0:02:57]} 6. Be3 {[%clk 0:03:03]}  Bg7 {[%clk 0:02:58]} 7. f3 {[%clk 0:03:04]}  O-O {[%clk 0:02:58]} 8. Qd2 {[%clk 0:03:04]}  Nc6 {[%clk 0:02:58]} 9. g4 {[%clk 0:03:05]}  Be6 {[%clk 0:02:57]} 10. Nxe6 {[%clk 0:03:05]}  fxe6 {[%clk 0:02:56]} 11. O-O-O {[%clk 0:03:06]}  Ne5 {[%clk 0:02:53]} 12. Be2 {[%clk 0:03:06]}  Qc8 {[%clk 0:02:52]} 13. h4 {[%clk 0:03:07]}  Nc4 {[%clk 0:02:51]} 14. Bxc4 {[%clk 0:03:06]}  Qxc4 {[%clk 0:02:52]} 15. h5 {[%clk 0:03:06]}  Nd7 {[%clk 0:02:46]} 16. hxg6 {[%clk 0:03:06]}  hxg6 {[%clk 0:02:46]} 17. f4 {[%clk 0:03:07]}  Bxc3 {[%clk 0:02:45]} 18. bxc3 {[%clk 0:03:07]}  Qxa2 {[%clk 0:02:41]} 19. Qh2 {[%clk 0:03:08]}  Nf6 {[%clk 0:02:14]} 20. Bd4 {[%clk 0:01:46]}  Kf7 {[%clk 0:01:04]} 21. Bxf6 {[%clk 0:01:45]}  Kxf6 {[%clk 0:01:05]} 22. e5+ {[%clk 0:01:10]}  Kf7 {[%clk 0:00:52]} 23. exd6 {[%clk 0:01:01]}  exd6 {[%clk 0:00:15]} 24. Qh7+ {[%clk 0:00:58]}  Ke8 {[%clk 0:00:15]} 25. Qxb7 {[%clk 0:00:40]}  Rd8 {[%clk 0:00:10]} 26. Qc6+ {[%clk 0:00:37]}  Rd7 {[%clk 0:00:06]} 27. Qc8+ {[%clk 0:00:37]}  Rd8 {[%clk 0:00:05]} 28. Qc6+ {[%clk 0:00:32]}  Rd7 {[%clk 0:00:05]} 29. Rh7 {[%clk 0:00:24]} 1-0


[Site "https://www.chess.com"]

[Event "Titled Tuesday Blitz February 14 Late 2023"]
[White "Alfaro, William"]
[Black "Rottenwohrer Suarez, Juan"]
[WhiteFideId "6100457"]
[BlackFideId "32068182"]
[WhiteElo "2134"]
[BlackElo "2265"]
[Result "0-1"]
[Round "08"]
[TimeControl "180+2"]
[Date "2023.02.14"]
[WhiteClock "0:00:53"]
[BlackClock "0:00:33"]

1. e4 {[%clk 0:03:00]}  c5 {[%clk 0:03:00]} 2. Nf3 {[%clk 0:03:00]}  g6 {[%clk 0:03:00]} 3. d4 {[%clk 0:03:00]}  cxd4 {[%clk 0:03:01]} 4. Qxd4 {[%clk 0:02:59]}  Nf6 {[%clk 0:03:01]} 5. e5 {[%clk 0:02:57]}  Nc6 {[%clk 0:03:02]} 6. Qd2 {[%clk 0:02:53]}  Ne4 {[%clk 0:02:59]} 7. Qe3 {[%clk 0:02:49]}  d5 {[%clk 0:02:59]} 8. exd6 {[%clk 0:02:49]}  Nxd6 {[%clk 0:02:58]} 9. Bd3 {[%clk 0:02:48]}  Bg7 {[%clk 0:02:58]} 10. O-O {[%clk 0:02:48]}  O-O {[%clk 0:02:59]} 11. Nc3 {[%clk 0:02:47]}  Bf5 {[%clk 0:02:52]} 12. Re1 {[%clk 0:02:39]}  Rc8 {[%clk 0:02:47]} 13. a3 {[%clk 0:02:36]}  a6 {[%clk 0:02:45]} 14. Qe2 {[%clk 0:02:30]}  Bg4 {[%clk 0:02:42]} 15. Be3 {[%clk 0:02:22]}  Nf5 {[%clk 0:02:41]} 16. h3 {[%clk 0:02:20]}  Nfd4 {[%clk 0:02:40]} 17. Bxd4 {[%clk 0:02:18]}  Nxd4 {[%clk 0:02:40]} 18. Qxe7 {[%clk 0:02:19]}  Bxf3 {[%clk 0:02:37]} 19. Qxd8 {[%clk 0:02:03]}  Rfxd8 {[%clk 0:02:37]} 20. gxf3 {[%clk 0:02:04]}  Nxf3+ {[%clk 0:02:38]} 21. Kg2 {[%clk 0:02:05]}  Nxe1+ {[%clk 0:02:38]} 22. Rxe1 {[%clk 0:02:05]}  Bxc3 {[%clk 0:02:39]} 23. bxc3 {[%clk 0:02:05]}  Rxc3 {[%clk 0:02:40]} 24. Re7 {[%clk 0:02:05]}  b5 {[%clk 0:02:38]} 25. a4 {[%clk 0:02:05]}  bxa4 {[%clk 0:02:35]} 26. Ra7 {[%clk 0:02:05]}  Rd6 {[%clk 0:02:28]} 27. Bxa6 {[%clk 0:02:02]}  Rxc2 {[%clk 0:02:28]} 28. Bb5 {[%clk 0:02:03]}  Rf6 {[%clk 0:02:22]} 29. Rxa4 {[%clk 0:02:00]}  Rcxf2+ {[%clk 0:02:16]} 30. Kg1 {[%clk 0:02:00]}  R2f5 {[%clk 0:02:13]} 31. Bc4 {[%clk 0:01:58]}  Rg5+ {[%clk 0:02:12]} 32. Kh2 {[%clk 0:01:58]}  Rf2+ {[%clk 0:02:10]} 33. Kh1 {[%clk 0:01:58]}  h5 {[%clk 0:02:11]} 34. Ra7 {[%clk 0:01:56]}  Rg3 {[%clk 0:02:08]} 35. Bd5 {[%clk 0:01:43]}  Rxh3+ {[%clk 0:02:04]} 36. Kg1 {[%clk 0:01:44]}  Rf5 {[%clk 0:02:05]} 37. Kg2 {[%clk 0:01:42]}  Rd3 {[%clk 0:01:48]} 38. Be4 {[%clk 0:01:41]}  Rd2+ {[%clk 0:01:49]} 39. Kg3 {[%clk 0:01:41]}  Rf6 {[%clk 0:01:49]} 40. Re7 {[%clk 0:01:37]}  Kg7 {[%clk 0:01:48]} 41. Ra7 {[%clk 0:01:37]}  h4+ {[%clk 0:01:47]} 42. Kh3 {[%clk 0:01:34]}  Rd4 {[%clk 0:01:45]} 43. Bg2 {[%clk 0:01:30]}  g5 {[%clk 0:01:43]} 44. Ra5 {[%clk 0:01:30]}  Kg6 {[%clk 0:01:33]} 45. Re5 {[%clk 0:01:27]}  Rd3+ {[%clk 0:01:28]} 46. Kh2 {[%clk 0:01:26]}  Rd2 {[%clk 0:01:28]} 47. Kh3 {[%clk 0:01:26]}  g4+ {[%clk 0:01:26]} 48. Kxh4 {[%clk 0:01:12]}  Rxg2 {[%clk 0:01:06]} 49. Rg5+ {[%clk 0:01:10]}  Kh7 {[%clk 0:01:06]} 50. Ra5 {[%clk 0:01:00]}  Rh6+ {[%clk 0:01:03]} 51. Kg5 {[%clk 0:01:00]}  g3 {[%clk 0:01:03]} 52. Ra7 {[%clk 0:00:59]}  Rf2 {[%clk 0:01:02]} 53. Ra3 {[%clk 0:00:56]}  g2 {[%clk 0:01:01]} 54. Rg3 {[%clk 0:00:56]}  Rg6+ {[%clk 0:00:59]} 55. Kh5 {[%clk 0:00:57]}  Rxg3 {[%clk 0:00:57]} 56. Kh4 {[%clk 0:00:57]}  Rg6 {[%clk 0:00:53]} 57. Kh5 {[%clk 0:00:56]}  f5 {[%clk 0:00:53]} 58. Kh4 {[%clk 0:00:56]}  f4 {[%clk 0:00:54]} 59. Kh5 {[%clk 0:00:57]}  f3 {[%clk 0:00:54]} 60. Kh4 {[%clk 0:00:56]}  Rf1 {[%clk 0:00:52]} 61. Kh3 {[%clk 0:00:56]}  Ra1 {[%clk 0:00:47]} 62. Kh4 {[%clk 0:00:55]}  f2 {[%clk 0:00:47]} 63. Kh3 {[%clk 0:00:55]}  f1=B {[%clk 0:00:39]} 64. Kh4 {[%clk 0:00:54]}  Ra4+ {[%clk 0:00:36]} 65. Kh5 {[%clk 0:00:53]}  Be2# {[%clk 0:00:33]} 0-1


[Site "https://www.chess.com"]

[Event "Titled Tuesday Blitz February 14 Late 2023"]
[White "Ansh M Shah"]
[Black "Guzman Moneo, Alberto"]
[WhiteFideId "25033379"]
[BlackFideId "2209616"]
[WhiteElo "2171"]
[BlackElo "2170"]
[Result "0-1"]
[Round "08"]
[TimeControl "180+2"]
[Date "2023.02.14"]
[WhiteClock "0:00:01"]
[BlackClock "0:00:39"]

1. d4 {[%clk 0:03:00]}  Nf6 {[%clk 0:02:59]} 2. c4 {[%clk 0:03:01]}  c5 {[%clk 0:02:58]} 3. d5 {[%clk 0:02:59]}  b5 {[%clk 0:02:58]} 4. cxb5 {[%clk 0:03:00]}  a6 {[%clk 0:02:55]} 5. e3 {[%clk 0:03:00]}  g6 {[%clk 0:02:55]} 6. Nc3 {[%clk 0:02:43]}  Bg7 {[%clk 0:02:52]} 7. Nf3 {[%clk 0:02:41]}  O-O {[%clk 0:02:52]} 8. a4 {[%clk 0:02:41]}  d6 {[%clk 0:02:51]} 9. e4 {[%clk 0:02:42]}  e6 {[%clk 0:02:51]} 10. dxe6 {[%clk 0:02:39]}  fxe6 {[%clk 0:02:50]} 11. Bd2 {[%clk 0:02:37]}  d5 {[%clk 0:02:49]} 12. exd5 {[%clk 0:02:37]}  exd5 {[%clk 0:02:50]} 13. bxa6 {[%clk 0:02:38]}  d4 {[%clk 0:02:49]} 14. Nb5 {[%clk 0:02:37]}  Re8+ {[%clk 0:02:41]} 15. Be2 {[%clk 0:01:45]}  d3 {[%clk 0:02:41]} 16. Be3 {[%clk 0:01:45]}  dxe2 {[%clk 0:02:36]} 17. Qxe2 {[%clk 0:01:46]}  Bxa6 {[%clk 0:02:27]} 18. O-O {[%clk 0:01:45]}  Kh8 {[%clk 0:02:24]} 19. Qc4 {[%clk 0:01:36]}  Re4 {[%clk 0:02:18]} 20. Qxc5 {[%clk 0:01:33]}  Nbd7 {[%clk 0:02:18]} 21. Qc6 {[%clk 0:01:30]}  Qc8 {[%clk 0:02:11]} 22. Qxc8+ {[%clk 0:01:27]}  Bxc8 {[%clk 0:02:06]} 23. Rfc1 {[%clk 0:01:12]}  Bf8 {[%clk 0:01:37]} 24. Ng5 {[%clk 0:00:56]}  Rb4 {[%clk 0:01:25]} 25. Ne6 {[%clk 0:00:55]}  Be7 {[%clk 0:01:07]} 26. Bd2 {[%clk 0:00:06]}  Rxb2 {[%clk 0:00:59]} 27. Bc3 {[%clk 0:00:06]}  Rb3 {[%clk 0:01:00]} 28. Nec7 {[%clk 0:00:04]}  Rb8 {[%clk 0:00:55]} 29. Nd5 {[%clk 0:00:03]}  Bd8 {[%clk 0:00:49]} 30. Ndc7 {[%clk 0:00:02]}  Kg8 {[%clk 0:00:45]} 31. Nd4 {[%clk 0:00:01]}  Rxc3 {[%clk 0:00:44]} 32. Rxc3 {[%clk 0:00:01]}  Ne4 {[%clk 0:00:41]} 33. Rc4 {[%clk 0:00:01]}  Nd6 {[%clk 0:00:40]} 34. Rcc1 {[%clk 0:00:01]}  Bf6 {[%clk 0:00:39]} 0-1


[Site "https://www.chess.com"]

[Event "Titled Tuesday Blitz February 14 Late 2023"]
[White "Torres Dominguez, David"]
[Black "Carrasco Miranda, Andres"]
[WhiteFideId "2220857"]
[BlackFideId "3405990"]
[WhiteElo "1994"]
[BlackElo "2240"]
[Result "1-0"]
[Round "08"]
[TimeControl "180+2"]
[Date "2023.02.14"]
[WhiteClock "0:00:31"]
[BlackClock "0:00:02"]

1. e4 {[%clk 0:02:59]}  c5 {[%clk 0:02:59]} 2. Nc3 {[%clk 0:02:58]}  d6 {[%clk 0:02:59]} 3. Bb5+ {[%clk 0:02:55]}  Bd7 {[%clk 0:02:57]} 4. Bxd7+ {[%clk 0:02:55]}  Qxd7 {[%clk 0:02:58]} 5. d3 {[%clk 0:02:53]}  g6 {[%clk 0:02:55]} 6. f4 {[%clk 0:02:52]}  Bg7 {[%clk 0:02:55]} 7. Nf3 {[%clk 0:02:51]}  Nc6 {[%clk 0:02:56]} 8. O-O {[%clk 0:02:48]}  Nd4 {[%clk 0:02:56]} 9. Be3 {[%clk 0:02:36]}  Nxf3+ {[%clk 0:02:55]} 10. Qxf3 {[%clk 0:02:34]}  Nf6 {[%clk 0:02:31]} 11. Rae1 {[%clk 0:02:32]}  Qg4 {[%clk 0:02:31]} 12. Qf2 {[%clk 0:02:27]}  a6 {[%clk 0:02:02]} 13. e5 {[%clk 0:02:18]}  Nd7 {[%clk 0:01:32]} 14. Nd5 {[%clk 0:02:09]}  O-O {[%clk 0:01:15]} 15. Nxe7+ {[%clk 0:02:04]}  Kh8 {[%clk 0:01:15]} 16. exd6 {[%clk 0:02:04]}  Bxb2 {[%clk 0:01:11]} 17. Bxc5 {[%clk 0:01:58]}  Nxc5 {[%clk 0:01:09]} 18. Qxc5 {[%clk 0:01:58]}  Rad8 {[%clk 0:01:09]} 19. Qb4 {[%clk 0:01:47]}  Bf6 {[%clk 0:01:04]} 20. Qxb7 {[%clk 0:01:34]}  Rxd6 {[%clk 0:00:59]} 21. Nc6 {[%clk 0:01:33]}  Kg7 {[%clk 0:00:42]} 22. Ne5 {[%clk 0:01:30]}  Qf5 {[%clk 0:00:31]} 23. Qe4 {[%clk 0:01:23]}  Qc8 {[%clk 0:00:28]} 24. c4 {[%clk 0:01:21]}  Rfd8 {[%clk 0:00:27]} 25. h3 {[%clk 0:01:16]}  Rd4 {[%clk 0:00:25]} 26. Qf3 {[%clk 0:01:14]}  Qc5 {[%clk 0:00:20]} 27. Kh1 {[%clk 0:01:11]}  h5 {[%clk 0:00:19]} 28. Rb1 {[%clk 0:01:01]}  Bxe5 {[%clk 0:00:16]} 29. fxe5 {[%clk 0:01:00]}  R4d7 {[%clk 0:00:15]} 30. Qf6+ {[%clk 0:00:55]}  Kh7 {[%clk 0:00:11]} 31. Rf3 {[%clk 0:00:41]}  Re8 {[%clk 0:00:06]} 32. Re1 {[%clk 0:00:40]}  Re6 {[%clk 0:00:05]} 33. Qg5 {[%clk 0:00:37]}  f6 {[%clk 0:00:02]} 34. Rxf6 {[%clk 0:00:31]} 1-0


[Site "https://www.chess.com"]

[Event "Titled Tuesday Blitz February 14 Late 2023"]
[White "Vaglio Mattey, Emanuel"]
[Black "Cruz Gomez, Miguel Angel"]
[WhiteFideId "6504167"]
[BlackFideId "5137160"]
[WhiteElo "2155"]
[BlackElo "1950"]
[Result "1-0"]
[Round "08"]
[TimeControl "180+2"]
[Date "2023.02.14"]
[WhiteClock "0:01:38"]
[BlackClock "0:01:47"]

1. d4 {[%clk 0:03:00]}  Nf6 {[%clk 0:02:56]} 2. Nf3 {[%clk 0:03:01]}  e6 {[%clk 0:02:56]} 3. Bg5 {[%clk 0:03:02]}  d5 {[%clk 0:02:49]} 4. Nbd2 {[%clk 0:03:02]}  Be7 {[%clk 0:02:39]} 5. e3 {[%clk 0:03:02]}  c5 {[%clk 0:02:38]} 6. c3 {[%clk 0:03:02]}  Nc6 {[%clk 0:02:38]} 7. Bd3 {[%clk 0:03:02]}  b6 {[%clk 0:02:31]} 8. O-O {[%clk 0:03:01]}  Bb7 {[%clk 0:02:31]} 9. Qe2 {[%clk 0:03:01]}  a6 {[%clk 0:02:30]} 10. Rad1 {[%clk 0:02:54]}  cxd4 {[%clk 0:02:18]} 11. exd4 {[%clk 0:02:55]}  b5 {[%clk 0:02:18]} 12. Ne5 {[%clk 0:02:55]}  Nd7 {[%clk 0:02:15]} 13. Nxc6 {[%clk 0:02:33]}  Bxc6 {[%clk 0:02:16]} 14. Bf4 {[%clk 0:02:31]}  O-O {[%clk 0:02:02]} 15. Qh5 {[%clk 0:02:28]}  g6 {[%clk 0:02:02]} 16. Qh3 {[%clk 0:02:27]}  Re8 {[%clk 0:02:01]} 17. Nf3 {[%clk 0:02:15]}  a5 {[%clk 0:01:59]} 18. Rfe1 {[%clk 0:02:11]}  b4 {[%clk 0:01:59]} 19. Rxe6 {[%clk 0:01:49]}  Ba4 {[%clk 0:01:47]} 20. b3 {[%clk 0:01:38]} 1-0


[Site "https://www.chess.com"]

[Event "Titled Tuesday Blitz February 14 Late 2023"]
[White "Golubev, Mikhail"]
[Black "Manu_ChessExcelsior"]
[WhiteFideId "14100983"]
[WhiteElo "2461"]
[BlackElo "1985"]
[Result "1-0"]
[Round "08"]
[TimeControl "180+2"]
[Date "2023.02.14"]
[WhiteClock "0:00:07"]
[BlackClock "0:00:06"]

1. e4 {[%clk 0:03:00]}  e5 {[%clk 0:02:59]} 2. Nf3 {[%clk 0:03:00]}  Nc6 {[%clk 0:02:58]} 3. Bc4 {[%clk 0:03:00]}  Nf6 {[%clk 0:02:58]} 4. Ng5 {[%clk 0:02:59]}  d5 {[%clk 0:02:58]} 5. exd5 {[%clk 0:02:59]}  Na5 {[%clk 0:02:58]} 6. Bb5+ {[%clk 0:02:59]}  c6 {[%clk 0:02:59]} 7. dxc6 {[%clk 0:03:00]}  bxc6 {[%clk 0:03:00]} 8. Bd3 {[%clk 0:03:00]}  Nd5 {[%clk 0:02:55]} 9. Nf3 {[%clk 0:02:46]}  Bd6 {[%clk 0:02:43]} 10. O-O {[%clk 0:02:45]}  O-O {[%clk 0:02:43]} 11. Re1 {[%clk 0:02:39]}  f5 {[%clk 0:02:39]} 12. Nxe5 {[%clk 0:02:32]}  Qf6 {[%clk 0:02:22]} 13. Nf3 {[%clk 0:02:30]}  g5 {[%clk 0:02:18]} 14. c4 {[%clk 0:01:40]}  Nf4 {[%clk 0:02:04]} 15. Bf1 {[%clk 0:01:39]}  g4 {[%clk 0:01:48]} 16. d4 {[%clk 0:01:39]}  gxf3 {[%clk 0:01:43]} 17. Qxf3 {[%clk 0:01:40]}  Ng6 {[%clk 0:01:27]} 18. c5 {[%clk 0:01:15]}  Bc7 {[%clk 0:01:22]} 19. b4 {[%clk 0:01:12]}  Nb7 {[%clk 0:01:22]} 20. b5 {[%clk 0:00:40]}  Bd7 {[%clk 0:01:14]} 21. Nc3 {[%clk 0:00:21]}  Rae8 {[%clk 0:01:01]} 22. Bh6 {[%clk 0:00:20]}  Rxe1 {[%clk 0:00:54]} 23. Rxe1 {[%clk 0:00:19]}  Re8 {[%clk 0:00:55]} 24. Rxe8+ {[%clk 0:00:18]}  Bxe8 {[%clk 0:00:55]} 25. Bc4+ {[%clk 0:00:16]}  Kh8 {[%clk 0:00:48]} 26. Be3 {[%clk 0:00:14]}  f4 {[%clk 0:00:44]} 27. Ne4 {[%clk 0:00:13]}  Nh4 {[%clk 0:00:29]} 28. Nxf6 {[%clk 0:00:12]}  Nxf3+ {[%clk 0:00:29]} 29. gxf3 {[%clk 0:00:13]}  fxe3 {[%clk 0:00:21]} 30. fxe3 {[%clk 0:00:12]}  Bg6 {[%clk 0:00:17]} 31. bxc6 {[%clk 0:00:11]}  Nd8 {[%clk 0:00:18]} 32. d5 {[%clk 0:00:11]}  Kg7 {[%clk 0:00:17]} 33. d6 {[%clk 0:00:10]}  Ba5 {[%clk 0:00:12]} 34. c7 {[%clk 0:00:09]}  Kxf6 {[%clk 0:00:09]} 35. c8=Q {[%clk 0:00:09]}  Bf5 {[%clk 0:00:09]} 36. Qb8 {[%clk 0:00:08]}  Bc3 {[%clk 0:00:08]} 37. d7 {[%clk 0:00:08]}  Bd2 {[%clk 0:00:07]} 38. Qxd8+ {[%clk 0:00:08]}  Ke5 {[%clk 0:00:07]} 39. Qe7+ {[%clk 0:00:07]}  Be6 {[%clk 0:00:06]} 40. Qxe6# {[%clk 0:00:07]} 1-0


[Site "https://www.chess.com"]